[Event "Titled Tuesday Blitz October 11 Late 2022"]
[White "Thomforde-Toates, Noah"]
[Black "Kouskoutis, Georgios-Alexandros"]
[WhiteFideId "30951992"]
[BlackFideId "4234049"]
[WhiteElo "2690"]
[BlackElo "2187"]
[Result "1-0"]
[Round "08"]
[TimeControl "180+1"]
[Date "2022.10.11"]
[WhiteClock "0:00:20"]
[BlackClock "0:00:01"]

1. c4 {[%clk 0:03:00]}  c5 {[%clk 0:02:58]} 2. Nc3 {[%clk 0:03:00]}  Nc6 {[%clk 0:02:58]} 3. g3 {[%clk 0:02:58]}  g6 {[%clk 0:02:58]} 4. Bg2 {[%clk 0:02:58]}  Bg7 {[%clk 0:02:58]} 5. Nf3 {[%clk 0:02:59]}  d6 {[%clk 0:02:57]} 6. O-O {[%clk 0:02:59]}  e5 {[%clk 0:02:58]} 7. d3 {[%clk 0:02:58]}  Nge7 {[%clk 0:02:58]} 8. a3 {[%clk 0:02:58]}  O-O {[%clk 0:02:55]} 9. Rb1 {[%clk 0:02:58]}  a5 {[%clk 0:02:54]} 10. Nd2 {[%clk 0:02:57]}  Rb8 {[%clk 0:02:50]} 11. Nd5 {[%clk 0:02:56]}  b5 {[%clk 0:02:47]} 12. cxb5 {[%clk 0:02:55]}  Rxb5 {[%clk 0:02:47]} 13. Nc4 {[%clk 0:02:53]}  Nxd5 {[%clk 0:02:28]} 14. Bxd5 {[%clk 0:02:52]}  Ne7 {[%clk 0:02:29]} 15. Bg2 {[%clk 0:02:49]}  d5 {[%clk 0:02:29]} 16. a4 {[%clk 0:02:41]}  Rb8 {[%clk 0:01:57]} 17. Ne3 {[%clk 0:02:27]}  Be6 {[%clk 0:01:52]} 18. Bd2 {[%clk 0:02:25]}  f5 {[%clk 0:01:43]} 19. Qc2 {[%clk 0:02:22]}  Qd6 {[%clk 0:01:29]} 20. Rfc1 {[%clk 0:02:20]}  Rfc8 {[%clk 0:01:28]} 21. Bxa5 {[%clk 0:02:18]}  f4 {[%clk 0:01:08]} 22. Nd1 {[%clk 0:02:09]}  Nf5 {[%clk 0:00:42]} 23. Bc3 {[%clk 0:02:04]}  d4 {[%clk 0:00:36]} 24. Be1 {[%clk 0:02:02]}  Bb3 {[%clk 0:00:36]} 25. Qd2 {[%clk 0:01:59]}  Bh6 {[%clk 0:00:25]} 26. Qa5 {[%clk 0:01:41]}  Ra8 {[%clk 0:00:19]} 27. Qb5 {[%clk 0:01:40]}  Bxa4 {[%clk 0:00:18]} 28. Qc4+ {[%clk 0:01:36]}  Kg7 {[%clk 0:00:17]} 29. Bxa8 {[%clk 0:01:35]}  Rxa8 {[%clk 0:00:13]} 30. g4 {[%clk 0:01:28]}  f3 {[%clk 0:00:05]} 31. e3 {[%clk 0:00:39]}  dxe3 {[%clk 0:00:04]} 32. gxf5 {[%clk 0:00:35]}  e2 {[%clk 0:00:03]} 33. Ne3 {[%clk 0:00:33]}  Qd4 {[%clk 0:00:03]} 34. Qxd4 {[%clk 0:00:30]}  exd4 {[%clk 0:00:02]} 35. f6+ {[%clk 0:00:27]}  Kf7 {[%clk 0:00:01]} 36. Bd2 {[%clk 0:00:17]}  dxe3 {[%clk 0:00:01]} 37. Bxe3 {[%clk 0:00:18]}  Bxe3 {[%clk 0:00:01]} 38. fxe3 {[%clk 0:00:19]}  Bd1 {[%clk 0:00:01]} 39. Kf2 {[%clk 0:00:20]}  Kxf6 {[%clk 0:00:01]} 40. Rxc5 {[%clk 0:00:20]}  g5 {[%clk 0:00:01]} 41. Rcc1 {[%clk 0:00:20]}  g4 {[%clk 0:00:01]} 42. Rc6+ {[%clk 0:00:20]}  Kg5 {[%clk 0:00:01]} 43. Rbc1 {[%clk 0:00:20]} 1-0


[Site "https://www.chess.com"]

[Event "Titled Tuesday Blitz October 11 Late 2022"]
[White "Torres Boch, Jose Francisco"]
[Black "Tan, Ralph"]
[WhiteFideId "2278383"]
[BlackFideId "30966590"]
[WhiteElo "2073"]
[BlackElo "2059"]
[Result "1/2-1/2"]
[Round "08"]
[TimeControl "180+1"]
[Date "2022.10.12"]
[WhiteClock "0:01:24"]
[BlackClock "0:01:31"]

1. e4 {[%clk 0:02:55]}  e6 {[%clk 0:02:59]} 2. d4 {[%clk 0:02:54]}  d5 {[%clk 0:02:59]} 3. Nc3 {[%clk 0:02:55]}  Nf6 {[%clk 0:02:59]} 4. e5 {[%clk 0:02:55]}  Nfd7 {[%clk 0:02:59]} 5. f4 {[%clk 0:02:55]}  c5 {[%clk 0:02:58]} 6. Nf3 {[%clk 0:02:56]}  Nc6 {[%clk 0:02:58]} 7. Be3 {[%clk 0:02:57]}  a6 {[%clk 0:02:57]} 8. Qd2 {[%clk 0:02:55]}  cxd4 {[%clk 0:02:53]} 9. Nxd4 {[%clk 0:02:54]}  Bc5 {[%clk 0:02:51]} 10. O-O-O {[%clk 0:02:38]}  Nxd4 {[%clk 0:02:48]} 11. Bxd4 {[%clk 0:02:36]}  b5 {[%clk 0:02:48]} 12. Qf2 {[%clk 0:02:15]}  Bxd4 {[%clk 0:02:46]} 13. Qxd4 {[%clk 0:02:16]}  O-O {[%clk 0:02:44]} 14. f5 {[%clk 0:02:09]}  Qc7 {[%clk 0:02:39]} 15. fxe6 {[%clk 0:02:03]}  fxe6 {[%clk 0:02:33]} 16. Nxd5 {[%clk 0:02:01]}  Qxe5 {[%clk 0:02:22]} 17. Ne7+ {[%clk 0:01:53]}  Kh8 {[%clk 0:02:20]} 18. Nxc8 {[%clk 0:01:54]}  Raxc8 {[%clk 0:02:12]} 19. Qxd7 {[%clk 0:01:50]}  Qg5+ {[%clk 0:01:37]} 20. Qd2 {[%clk 0:01:44]}  Rf2 {[%clk 0:01:31]} 21. Qxg5 {[%clk 0:01:23]}  Rcxc2+ {[%clk 0:01:29]} 22. Kb1 {[%clk 0:01:23]}  Rxb2+ {[%clk 0:01:29]} 23. Ka1 {[%clk 0:01:23]}  Rxa2+ {[%clk 0:01:29]} 24. Kb1 {[%clk 0:01:23]}  Rfb2+ {[%clk 0:01:29]} 25. Kc1 {[%clk 0:01:23]}  Rc2+ {[%clk 0:01:29]} 26. Kb1 {[%clk 0:01:23]}  Rab2+ {[%clk 0:01:30]} 27. Ka1 {[%clk 0:01:23]}  Ra2+ {[%clk 0:01:30]} 28. Kb1 {[%clk 0:01:24]}  Rab2+ {[%clk 0:01:31]} 29. Ka1 {[%clk 0:01:24]}  Ra2+ {[%clk 0:01:31]} 30. Kb1 {[%clk 0:01:24]} 1/2-1/2


[Site "https://www.chess.com"]

[Event "Titled Tuesday Blitz October 11 Late 2022"]
[White "Vargas, Mauricio"]
[Black "Owen, Michael"]
[WhiteFideId "4404572"]
[BlackFideId "7104820"]
[WhiteElo "2025"]
[BlackElo "1943"]
[Result "0-1"]
[Round "08"]
[TimeControl "180+1"]
[Date "2022.10.12"]
[WhiteClock "0:00:03"]
[BlackClock "0:00:12"]

1. e4 {[%clk 0:01:07]}  c5 {[%clk 0:02:57]} 2. Nc3 {[%clk 0:01:06]}  d6 {[%clk 0:02:57]} 3. f4 {[%clk 0:01:07]}  Nc6 {[%clk 0:02:55]} 4. Nf3 {[%clk 0:01:07]}  g6 {[%clk 0:02:55]} 5. Bb5 {[%clk 0:01:08]}  Bd7 {[%clk 0:02:55]} 6. Bxc6 {[%clk 0:01:09]}  Bxc6 {[%clk 0:02:55]} 7. O-O {[%clk 0:01:10]}  Bg7 {[%clk 0:02:55]} 8. d3 {[%clk 0:01:10]}  e6 {[%clk 0:02:54]} 9. Qe1 {[%clk 0:01:11]}  Ne7 {[%clk 0:02:54]} 10. Bd2 {[%clk 0:01:11]}  O-O {[%clk 0:02:53]} 11. Qh4 {[%clk 0:01:10]}  d5 {[%clk 0:02:22]} 12. f5 {[%clk 0:01:07]}  exf5 {[%clk 0:02:17]} 13. Bh6 {[%clk 0:01:03]}  dxe4 {[%clk 0:01:08]} 14. Ng5 {[%clk 0:01:02]}  Qd4+ {[%clk 0:01:06]} 15. Kh1 {[%clk 0:00:54]}  exd3 {[%clk 0:01:06]} 16. Rf4 {[%clk 0:00:53]}  Qf6 {[%clk 0:01:02]} 17. cxd3 {[%clk 0:00:47]}  Rfd8 {[%clk 0:00:52]} 18. Nce4 {[%clk 0:00:45]}  Bxe4 {[%clk 0:00:49]} 19. dxe4 {[%clk 0:00:44]}  Rd4 {[%clk 0:00:37]} 20. e5 {[%clk 0:00:42]}  Qxe5 {[%clk 0:00:34]} 21. Bxg7 {[%clk 0:00:39]}  Qxg7 {[%clk 0:00:33]} 22. Rxd4 {[%clk 0:00:30]}  cxd4 {[%clk 0:00:32]} 23. Rd1 {[%clk 0:00:25]}  Nc6 {[%clk 0:00:32]} 24. b4 {[%clk 0:00:22]}  a6 {[%clk 0:00:32]} 25. a4 {[%clk 0:00:21]}  b5 {[%clk 0:00:25]} 26. Re1 {[%clk 0:00:14]}  h6 {[%clk 0:00:24]} 27. Nf3 {[%clk 0:00:11]}  Rd8 {[%clk 0:00:23]} 28. Rc1 {[%clk 0:00:09]}  Rd6 {[%clk 0:00:19]} 29. axb5 {[%clk 0:00:05]}  axb5 {[%clk 0:00:19]} 30. Rc5 {[%clk 0:00:06]}  d3 {[%clk 0:00:18]} 31. h3 {[%clk 0:00:06]}  d2 {[%clk 0:00:18]} 32. Nxd2 {[%clk 0:00:01]}  Rxd2 {[%clk 0:00:10]} 33. Rxc6 {[%clk 0:00:02]}  Rd1+ {[%clk 0:00:11]} 34. Kh2 {[%clk 0:00:02]}  Qe5+ {[%clk 0:00:11]} 35. Qg3 {[%clk 0:00:02]}  Qxg3+ {[%clk 0:00:11]} 36. Kxg3 {[%clk 0:00:03]}  Rd4 {[%clk 0:00:12]} 0-1


[Site "https://www.chess.com"]

[Event "Titled Tuesday Blitz October 11 Late 2022"]
[White "Vrbljanac, Aleksandar"]
[Black "Maksimovic, Bojan"]
[WhiteFideId "932817"]
[BlackFideId "14408120"]
[WhiteElo "2309"]
[BlackElo "2447"]
[Result "0-1"]
[Round "08"]
[TimeControl "180+1"]
[Date "2022.10.11"]
[WhiteClock "0:00:01"]
[BlackClock "0:00:01"]

1. e4 {[%clk 0:03:00]}  c5 {[%clk 0:03:00]} 2. Nf3 {[%clk 0:03:01]}  e6 {[%clk 0:03:01]} 3. g3 {[%clk 0:03:01]}  d5 {[%clk 0:03:00]} 4. exd5 {[%clk 0:03:01]}  exd5 {[%clk 0:03:01]} 5. d4 {[%clk 0:03:01]}  Nc6 {[%clk 0:02:59]} 6. Bg2 {[%clk 0:02:58]}  cxd4 {[%clk 0:02:40]} 7. Nxd4 {[%clk 0:02:58]}  Bc5 {[%clk 0:02:40]} 8. Nxc6 {[%clk 0:02:45]}  bxc6 {[%clk 0:02:40]} 9. O-O {[%clk 0:02:46]}  Nf6 {[%clk 0:02:38]} 10. Re1+ {[%clk 0:02:40]}  Be6 {[%clk 0:02:38]} 11. c4 {[%clk 0:02:34]}  O-O {[%clk 0:02:37]} 12. cxd5 {[%clk 0:02:17]}  cxd5 {[%clk 0:02:38]} 13. Nc3 {[%clk 0:02:16]}  Rc8 {[%clk 0:02:35]} 14. Bg5 {[%clk 0:02:13]}  h6 {[%clk 0:02:34]} 15. Bf4 {[%clk 0:02:07]}  Ng4 {[%clk 0:02:04]} 16. Re2 {[%clk 0:01:56]}  Nf6 {[%clk 0:01:23]} 17. Qd3 {[%clk 0:01:29]}  Qa5 {[%clk 0:01:14]} 18. Be5 {[%clk 0:01:20]}  Nd7 {[%clk 0:01:03]} 19. Bd4 {[%clk 0:01:16]}  Bxd4 {[%clk 0:00:55]} 20. Qxd4 {[%clk 0:01:17]}  Rc4 {[%clk 0:00:54]} 21. Qd2 {[%clk 0:01:00]}  Rfc8 {[%clk 0:00:20]} 22. Rd1 {[%clk 0:00:48]}  d4 {[%clk 0:00:19]} 23. Ne4 {[%clk 0:00:44]}  Qxd2 {[%clk 0:00:08]} 24. Rexd2 {[%clk 0:00:44]}  Rc2 {[%clk 0:00:08]} 25. h4 {[%clk 0:00:34]}  Ne5 {[%clk 0:00:07]} 26. Nd6 {[%clk 0:00:32]}  Rxd2 {[%clk 0:00:07]} 27. Rxd2 {[%clk 0:00:31]}  Rc1+ {[%clk 0:00:07]} 28. Kh2 {[%clk 0:00:30]}  Ng4+ {[%clk 0:00:08]} 29. Kh3 {[%clk 0:00:29]}  Nxf2+ {[%clk 0:00:08]} 30. Kh2 {[%clk 0:00:30]}  Ng4+ {[%clk 0:00:09]} 31. Kh3 {[%clk 0:00:30]}  Ne3+ {[%clk 0:00:09]} 32. Kh2 {[%clk 0:00:31]}  Ng4+ {[%clk 0:00:06]} 33. Kh3 {[%clk 0:00:31]}  h5 {[%clk 0:00:06]} 34. Rxd4 {[%clk 0:00:20]}  Ne3+ {[%clk 0:00:04]} 35. Kh2 {[%clk 0:00:20]}  Rc2 {[%clk 0:00:04]} 36. Re4 {[%clk 0:00:07]}  Nxg2 {[%clk 0:00:04]} 37. Kg1 {[%clk 0:00:06]}  Bd5 {[%clk 0:00:04]} 38. Re8+ {[%clk 0:00:04]}  Kh7 {[%clk 0:00:04]} 39. Nf5 {[%clk 0:00:05]}  Rc1+ {[%clk 0:00:04]} 40. Kh2 {[%clk 0:00:05]}  Ne3 {[%clk 0:00:01]} 41. Nd4 {[%clk 0:00:01]}  Rh1# {[%clk 0:00:01]} 0-1


[Site "https://www.chess.com"]

[Event "Titled Tuesday Blitz October 11 Late 2022"]
[White "Vujcic, Milena"]
[Black "Buchenau, Frank"]
[WhiteFideId "954748"]
[BlackFideId "4604350"]
[WhiteElo "1931"]
[BlackElo "2157"]
[Result "0-1"]
[Round "08"]
[TimeControl "180+1"]
[Date "2022.10.12"]
[WhiteClock "0:02:28"]
[BlackClock "0:02:53"]

1. e4 {[%clk 0:03:00]}  e6 {[%clk 0:03:00]} 2. d4 {[%clk 0:02:56]}  d5 {[%clk 0:03:00]} 3. Nd2 {[%clk 0:02:53]}  c5 {[%clk 0:02:59]} 4. Ngf3 {[%clk 0:02:51]}  cxd4 {[%clk 0:02:58]} 5. Nxd4 {[%clk 0:02:51]}  Nc6 {[%clk 0:02:58]} 6. Bb5 {[%clk 0:02:49]}  Bd7 {[%clk 0:02:56]} 7. exd5 {[%clk 0:02:44]}  Nxd4 {[%clk 0:02:55]} 8. Bxd7+ {[%clk 0:02:30]}  Qxd7 {[%clk 0:02:55]} 9. dxe6 {[%clk 0:02:30]}  Qxe6+ {[%clk 0:02:54]} 10. Qe2 {[%clk 0:02:28]}  Qxe2# {[%clk 0:02:53]} 0-1


[Site "https://www.chess.com"]

[Event "Titled Tuesday Blitz October 11 Late 2022"]
[White "Wadsworth, Matthew J"]
[Black "Sanal, Vahap"]
[WhiteFideId "415804"]
[BlackFideId "6300545"]
[WhiteElo "2367"]
[BlackElo "2574"]
[Result "0-1"]
[Round "08"]
[TimeControl "180+1"]
[Date "2022.10.11"]
[WhiteClock "0:00:33"]
[BlackClock "0:02:05"]

1. c4 {[%clk 0:03:00]}  d6 {[%clk 0:03:00]} 2. g3 {[%clk 0:03:01]}  e5 {[%clk 0:02:59]} 3. Nc3 {[%clk 0:03:00]}  Nc6 {[%clk 0:03:00]} 4. Bg2 {[%clk 0:03:00]}  f5 {[%clk 0:03:00]} 5. d3 {[%clk 0:02:59]}  Nf6 {[%clk 0:03:00]} 6. Rb1 {[%clk 0:03:00]}  g6 {[%clk 0:03:00]} 7. b4 {[%clk 0:02:59]}  Bg7 {[%clk 0:03:01]} 8. b5 {[%clk 0:03:00]}  Ne7 {[%clk 0:03:01]} 9. Nf3 {[%clk 0:02:58]}  O-O {[%clk 0:03:01]} 10. O-O {[%clk 0:02:58]}  Kh8 {[%clk 0:03:01]} 11. Nd2 {[%clk 0:02:53]}  f4 {[%clk 0:02:59]} 12. a4 {[%clk 0:02:52]}  Bg4 {[%clk 0:02:55]} 13. Nde4 {[%clk 0:02:38]}  Qd7 {[%clk 0:02:50]} 14. Nxf6 {[%clk 0:02:36]}  Bxf6 {[%clk 0:02:48]} 15. Ne4 {[%clk 0:02:36]}  Bg7 {[%clk 0:02:49]} 16. Ba3 {[%clk 0:02:25]}  b6 {[%clk 0:02:47]} 17. a5 {[%clk 0:02:16]}  Bh3 {[%clk 0:02:46]} 18. Bb4 {[%clk 0:02:15]}  Bxg2 {[%clk 0:02:34]} 19. Kxg2 {[%clk 0:02:14]}  Nf5 {[%clk 0:02:35]} 20. axb6 {[%clk 0:02:03]}  axb6 {[%clk 0:02:35]} 21. Ra1 {[%clk 0:02:00]}  Rxa1 {[%clk 0:02:31]} 22. Qxa1 {[%clk 0:01:59]}  Nd4 {[%clk 0:02:32]} 23. e3 {[%clk 0:01:51]}  f3+ {[%clk 0:02:32]} 24. Kh1 {[%clk 0:01:50]}  Qh3 {[%clk 0:02:28]} 25. Rg1 {[%clk 0:01:49]}  Ne2 {[%clk 0:02:28]} 26. Qf1 {[%clk 0:01:33]}  Nxg1 {[%clk 0:02:24]} 27. Kxg1 {[%clk 0:01:31]}  Qxf1+ {[%clk 0:02:20]} 28. Kxf1 {[%clk 0:01:31]}  Ra8 {[%clk 0:02:21]} 29. Ng5 {[%clk 0:01:24]}  Ra1+ {[%clk 0:02:19]} 30. Be1 {[%clk 0:01:23]}  d5 {[%clk 0:02:13]} 31. cxd5 {[%clk 0:01:13]}  Rd1 {[%clk 0:02:11]} 32. d4 {[%clk 0:00:40]}  exd4 {[%clk 0:02:05]} 33. e4 {[%clk 0:00:40]}  d3 {[%clk 0:02:05]} 34. Nxf3 {[%clk 0:00:39]}  Bc3 {[%clk 0:02:06]} 35. e5 {[%clk 0:00:33]}  Bxe1 {[%clk 0:02:05]} 36. Nxe1 {[%clk 0:00:33]}  d2 {[%clk 0:02:05]} 0-1


[Site "https://www.chess.com"]

[Event "Titled Tuesday Blitz October 11 Late 2022"]
[White "Winterberg, Lukas"]
[Black "Dardha, Arben"]
[WhiteFideId "24622702"]
[BlackFideId "4700481"]
[WhiteElo "2349"]
[BlackElo "2196"]
[Result "1/2-1/2"]
[Round "08"]
[TimeControl "180+1"]
[Date "2022.10.12"]
[WhiteClock "0:00:06"]
[BlackClock "0:01:06"]

1. c4 {[%clk 0:03:00]}  c5 {[%clk 0:02:49]} 2. Nf3 {[%clk 0:03:00]}  Nc6 {[%clk 0:02:49]} 3. Nc3 {[%clk 0:03:00]}  e5 {[%clk 0:02:49]} 4. e3 {[%clk 0:03:00]}  d6 {[%clk 0:02:48]} 5. d4 {[%clk 0:02:59]}  exd4 {[%clk 0:02:47]} 6. exd4 {[%clk 0:03:00]}  Nf6 {[%clk 0:02:48]} 7. Be2 {[%clk 0:02:36]}  Be7 {[%clk 0:02:45]} 8. O-O {[%clk 0:02:35]}  O-O {[%clk 0:02:44]} 9. b3 {[%clk 0:02:33]}  Bg4 {[%clk 0:02:42]} 10. d5 {[%clk 0:02:28]}  Bxf3 {[%clk 0:02:42]} 11. Bxf3 {[%clk 0:02:26]}  Nd4 {[%clk 0:02:42]} 12. Bb2 {[%clk 0:02:20]}  Nd7 {[%clk 0:02:41]} 13. Be2 {[%clk 0:01:59]}  Bf6 {[%clk 0:02:37]} 14. Bd3 {[%clk 0:01:48]}  Ne5 {[%clk 0:02:36]} 15. Rb1 {[%clk 0:01:34]}  Qd7 {[%clk 0:02:35]} 16. Ne2 {[%clk 0:01:26]}  Ndf3+ {[%clk 0:01:54]} 17. Kh1 {[%clk 0:01:22]}  Nxd3 {[%clk 0:01:46]} 18. Qxd3 {[%clk 0:01:20]}  Bxb2 {[%clk 0:01:44]} 19. Rxb2 {[%clk 0:01:21]}  Ne5 {[%clk 0:01:44]} 20. Qg3 {[%clk 0:01:16]}  Rae8 {[%clk 0:01:43]} 21. Nf4 {[%clk 0:01:11]}  Qf5 {[%clk 0:01:41]} 22. Re2 {[%clk 0:01:10]}  Ng6 {[%clk 0:01:40]} 23. Rxe8 {[%clk 0:00:54]}  Rxe8 {[%clk 0:01:41]} 24. Nxg6 {[%clk 0:00:36]}  Qxg6 {[%clk 0:01:40]} 25. Qxg6 {[%clk 0:00:19]}  hxg6 {[%clk 0:01:41]} 26. Kg1 {[%clk 0:00:18]}  Re2 {[%clk 0:01:40]} 27. Ra1 {[%clk 0:00:18]}  f5 {[%clk 0:01:37]} 28. Kf1 {[%clk 0:00:19]}  Rb2 {[%clk 0:01:37]} 29. Re1 {[%clk 0:00:15]}  Kf7 {[%clk 0:01:31]} 30. Re6 {[%clk 0:00:14]}  Rxa2 {[%clk 0:01:29]} 31. Rxd6 {[%clk 0:00:14]}  b5 {[%clk 0:01:22]} 32. Rc6 {[%clk 0:00:11]}  b4 {[%clk 0:01:19]} 33. Rxc5 {[%clk 0:00:09]}  Rb2 {[%clk 0:01:20]} 34. Ra5 {[%clk 0:00:07]}  Rxb3 {[%clk 0:01:19]} 35. Rxa7+ {[%clk 0:00:08]}  Ke8 {[%clk 0:01:20]} 36. c5 {[%clk 0:00:07]}  Rc3 {[%clk 0:01:20]} 37. c6 {[%clk 0:00:05]}  b3 {[%clk 0:01:20]} 38. Rb7 {[%clk 0:00:06]}  Rc5 {[%clk 0:01:19]} 39. Rxb3 {[%clk 0:00:05]}  Rxd5 {[%clk 0:01:19]} 40. Rb7 {[%clk 0:00:06]}  Rc5 {[%clk 0:01:19]} 41. c7 {[%clk 0:00:04]}  Kd7 {[%clk 0:01:18]} 42. c8=Q+ {[%clk 0:00:05]}  Kxc8 {[%clk 0:01:19]} 43. Rxg7 {[%clk 0:00:05]}  Rc6 {[%clk 0:01:19]} 44. Ke2 {[%clk 0:00:05]}  Kd8 {[%clk 0:01:20]} 45. Kf3 {[%clk 0:00:05]}  Ke8 {[%clk 0:01:20]} 46. Kf4 {[%clk 0:00:06]}  Kf8 {[%clk 0:01:21]} 47. Rd7 {[%clk 0:00:06]}  Rc2 {[%clk 0:01:20]} 48. Kg3 {[%clk 0:00:05]}  Rc4 {[%clk 0:01:20]} 49. f4 {[%clk 0:00:05]}  Kg8 {[%clk 0:01:19]} 50. Kh3 {[%clk 0:00:05]}  Rxf4 {[%clk 0:01:19]} 51. g3 {[%clk 0:00:04]}  Ra4 {[%clk 0:01:17]} 52. Rc7 {[%clk 0:00:04]}  Kf8 {[%clk 0:01:17]} 53. Rd7 {[%clk 0:00:04]}  Ra2 {[%clk 0:01:16]} 54. Rc7 {[%clk 0:00:04]}  Re2 {[%clk 0:01:15]} 55. Rb7 {[%clk 0:00:04]}  Re7 {[%clk 0:01:15]} 56. Rxe7 {[%clk 0:00:04]}  Kxe7 {[%clk 0:01:16]} 57. Kh4 {[%clk 0:00:05]}  Kf6 {[%clk 0:01:16]} 58. Kh3 {[%clk 0:00:04]}  g5 {[%clk 0:01:15]} 59. Kg2 {[%clk 0:00:05]}  Ke5 {[%clk 0:01:16]} 60. Kf3 {[%clk 0:00:05]}  Kd4 {[%clk 0:01:15]} 61. h4 {[%clk 0:00:04]}  gxh4 {[%clk 0:01:08]} 62. gxh4 {[%clk 0:00:05]}  Ke5 {[%clk 0:01:08]} 63. h5 {[%clk 0:00:04]}  Kf6 {[%clk 0:01:09]} 64. Kf4 {[%clk 0:00:05]}  Kg7 {[%clk 0:01:06]} 65. h6+ {[%clk 0:00:06]}  Kxh6 {[%clk 0:01:06]} 66. Kxf5 {[%clk 0:00:06]} 1/2-1/2


[Site "https://www.chess.com"]

[Event "Titled Tuesday Blitz October 11 Late 2022"]
[White "Zochowski, Kacper"]
[Black "Barria Zuniga, Daniel"]
[WhiteFideId "1125494"]
[BlackFideId "3400816"]
[WhiteElo "2520"]
[BlackElo "2666"]
[Result "0-1"]
[Round "08"]
[TimeControl "180+1"]
[Date "2022.10.12"]
[WhiteClock "0:01:50"]
[BlackClock "0:01:40"]

1. Nf3 {[%clk 0:03:00]}  g6 {[%clk 0:02:56]} 2. c4 {[%clk 0:02:59]}  Bg7 {[%clk 0:02:56]} 3. g3 {[%clk 0:03:00]}  e5 {[%clk 0:02:54]} 4. Nc3 {[%clk 0:02:59]}  Ne7 {[%clk 0:02:54]} 5. Bg2 {[%clk 0:02:59]}  O-O {[%clk 0:02:55]} 6. O-O {[%clk 0:02:59]}  c6 {[%clk 0:02:54]} 7. d4 {[%clk 0:02:48]}  d6 {[%clk 0:02:52]} 8. Bg5 {[%clk 0:02:46]}  f6 {[%clk 0:02:51]} 9. Bd2 {[%clk 0:02:43]}  Be6 {[%clk 0:02:43]} 10. b3 {[%clk 0:02:41]}  Nd7 {[%clk 0:02:40]} 11. Qc1 {[%clk 0:02:39]}  Kh8 {[%clk 0:02:34]} 12. Bh6 {[%clk 0:02:37]}  Qa5 {[%clk 0:02:23]} 13. Bxg7+ {[%clk 0:02:36]}  Kxg7 {[%clk 0:02:24]} 14. Ne4 {[%clk 0:02:35]}  Nf5 {[%clk 0:02:16]} 15. dxe5 {[%clk 0:02:29]}  dxe5 {[%clk 0:02:16]} 16. e3 {[%clk 0:02:27]}  Nc5 {[%clk 0:02:12]} 17. Nxc5 {[%clk 0:02:25]}  Qxc5 {[%clk 0:02:13]} 18. Rd1 {[%clk 0:02:25]}  Rad8 {[%clk 0:02:12]} 19. Qc3 {[%clk 0:02:24]}  a5 {[%clk 0:02:11]} 20. Nd2 {[%clk 0:02:18]}  Qb4 {[%clk 0:02:03]} 21. Qb2 {[%clk 0:01:59]}  Rd7 {[%clk 0:02:00]} 22. a3 {[%clk 0:01:59]}  Qe7 {[%clk 0:01:50]} 23. Ne4 {[%clk 0:01:57]}  Rfd8 {[%clk 0:01:50]} 24. Rxd7 {[%clk 0:01:55]}  Rxd7 {[%clk 0:01:50]} 25. b4 {[%clk 0:01:54]}  axb4 {[%clk 0:01:48]} 26. axb4 {[%clk 0:01:51]}  Bxc4 {[%clk 0:01:47]} 27. Nc5 {[%clk 0:01:52]}  Rd6 {[%clk 0:01:41]} 28. Ra7 {[%clk 0:01:50]}  Rd1+ {[%clk 0:01:40]} 0-1


[Site "https://www.chess.com"]

[Event "Titled Tuesday Blitz October 11 Late 2022"]
[White "miragha_yev"]
[Black "Bjelobrk, Igor"]
[BlackFideId "4300726"]
[WhiteElo "2753"]
[BlackElo "2335"]
[Result "1-0"]
[Round "08"]
[TimeControl "180+1"]
[Date "2022.10.11"]
[WhiteClock "0:01:21"]
[BlackClock "0:00:14"]

1. e4 {[%clk 0:03:00]}  e5 {[%clk 0:02:59]} 2. Nf3 {[%clk 0:03:00]}  Nc6 {[%clk 0:02:58]} 3. a3 {[%clk 0:02:56]}  Nf6 {[%clk 0:02:54]} 4. Nc3 {[%clk 0:02:56]}  d5 {[%clk 0:02:49]} 5. Bb5 {[%clk 0:02:55]}  Nxe4 {[%clk 0:02:46]} 6. Qe2 {[%clk 0:02:54]}  Qd6 {[%clk 0:02:41]} 7. Nxe4 {[%clk 0:02:52]}  dxe4 {[%clk 0:02:40]} 8. Qxe4 {[%clk 0:02:52]}  Bd7 {[%clk 0:02:41]} 9. d4 {[%clk 0:02:49]}  O-O-O {[%clk 0:02:37]} 10. dxe5 {[%clk 0:02:49]}  Nxe5 {[%clk 0:01:56]} 11. Bxd7+ {[%clk 0:02:49]}  Nxd7 {[%clk 0:01:56]} 12. O-O {[%clk 0:02:36]}  Nf6 {[%clk 0:01:55]} 13. Qa4 {[%clk 0:02:31]}  Kb8 {[%clk 0:01:53]} 14. Be3 {[%clk 0:02:29]}  a6 {[%clk 0:01:47]} 15. c4 {[%clk 0:02:28]}  Qd7 {[%clk 0:01:45]} 16. Rfd1 {[%clk 0:02:18]}  Bd6 {[%clk 0:01:42]} 17. Qb3 {[%clk 0:02:06]}  Qe7 {[%clk 0:00:43]} 18. Nd4 {[%clk 0:02:03]}  Ka8 {[%clk 0:00:43]} 19. Nf5 {[%clk 0:01:59]}  Qe5 {[%clk 0:00:37]} 20. Nxd6 {[%clk 0:01:58]}  Rxd6 {[%clk 0:00:37]} 21. Rxd6 {[%clk 0:01:58]}  Qxd6 {[%clk 0:00:37]} 22. Rd1 {[%clk 0:01:57]}  Qe6 {[%clk 0:00:36]} 23. h3 {[%clk 0:01:53]}  Re8 {[%clk 0:00:36]} 24. Qc3 {[%clk 0:01:50]}  g6 {[%clk 0:00:32]} 25. b3 {[%clk 0:01:45]}  Ne4 {[%clk 0:00:32]} 26. Qd4 {[%clk 0:01:43]}  c5 {[%clk 0:00:32]} 27. Qd7 {[%clk 0:01:36]}  h5 {[%clk 0:00:20]} 28. Qxe6 {[%clk 0:01:35]}  Rxe6 {[%clk 0:00:21]} 29. Rd8+ {[%clk 0:01:28]}  Ka7 {[%clk 0:00:20]} 30. f3 {[%clk 0:01:27]}  Nc3 {[%clk 0:00:14]} 31. Bxc5+ {[%clk 0:01:27]}  b6 {[%clk 0:00:14]} 32. Rd7+ {[%clk 0:01:28]}  Kb8 {[%clk 0:00:14]} 33. Bb4 {[%clk 0:01:25]}  Ne2+ {[%clk 0:00:14]} 34. Kf2 {[%clk 0:01:25]}  f5 {[%clk 0:00:15]} 35. Rd6 {[%clk 0:01:22]}  Rxd6 {[%clk 0:00:14]} 36. Bxd6+ {[%clk 0:01:21]} 1-0


[Site "https://www.chess.com"]